[Event "Elite Hotels Open 2024"]
[Site "Elite Stadshotellet, Kungsgatan 6, Vaxjo, Sweden"]
[Date "2024.02.09"]
[Round "2.1"]
[White "Hillarp, Tiger"]
[Black "Joensson, Oscar"]
[Result "1-0"]
[TimeControl "15 minutes + 5 seconds per move from move one (Round 1 - 4) / 90 minutes + 30 seconds per move from move one (Round 5 - 8)"]
[WhiteTitle "GM"]
[WhiteFideId "1700812"]
[BlackFideId "1729977"]
[WhiteElo "2476"]
[BlackElo "2022"]

1. Nf3 {[%clk 00:15:07]} {[%emt 00:00:02]} d5 {[%clk 00:15:09]} {[%emt
00:00:02]} 2. g3 {[%clk 00:15:10]} {[%emt 00:00:02]} c5 {[%clk 00:15:11]}
{[%emt 00:00:02]} 3. Bg2 {[%clk 00:15:07]} {[%emt 00:00:08]} Nc6 {[%clk
00:15:10]} {[%emt 00:00:06]} 4. d4 {[%clk 00:15:10]} {[%emt 00:00:03]} Nf6
{[%clk 00:14:18]} {[%emt 00:00:57]} 5. O-O {[%clk 00:15:12]} {[%emt 00:00:03]}
Bf5 {[%clk 00:12:45]} {[%emt 00:01:38]} 6. c4 {[%clk 00:14:07]} {[%emt
00:01:09]} dxc4 {[%clk 00:10:41]} {[%emt 00:02:10]} 7. Qa4 {[%clk 00:13:25]}
{[%emt 00:00:47]} Bd7 {[%clk 00:09:15]} {[%emt 00:01:31]} 8. Qxc4 {[%clk
00:12:53]} {[%emt 00:00:36]} cxd4 {[%clk 00:08:26]} {[%emt 00:00:54]} 9. Nxd4
{[%clk 00:12:44]} {[%emt 00:00:13]} Nxd4 {[%clk 00:08:17]} {[%emt 00:00:15]} 10.
Qxd4 {[%clk 00:12:47]} {[%emt 00:00:02]} Bc6 {[%clk 00:07:39]} {[%emt
00:00:43]} 11. Bxc6+ {[%clk 00:12:49]} {[%emt 00:00:03]} bxc6 {[%clk 00:07:43]}
{[%emt 00:00:02]} 12. Qa4 {[%clk 00:12:35]} {[%emt 00:00:19]} Qc8 {[%clk
00:06:47]} {[%emt 00:01:01]} 13. Bg5 {[%clk 00:11:31]} {[%emt 00:01:08]} Nd7
{[%clk 00:05:55]} {[%emt 00:00:57]} 14. Rc1 {[%clk 00:11:20]} {[%emt 00:00:15]}
c5 {[%clk 00:05:11]} {[%emt 00:00:50]} 15. Nd2 {[%clk 00:10:15]} {[%emt
00:01:09]} e6 {[%clk 00:04:17]} {[%emt 00:01:00]} 16. b4 {[%clk 00:07:53]}
{[%emt 00:02:27]} Be7 {[%clk 00:03:23]} {[%emt 00:00:59]} 17. Bxe7 {[%clk
00:07:50]} {[%emt 00:00:08]} Kxe7 {[%clk 00:03:25]} {[%emt 00:00:02]} 18. bxc5
{[%clk 00:07:51]} {[%emt 00:00:05]} Ne5 {[%clk 00:02:01]} {[%emt 00:01:28]} 19.
c6 {[%clk 00:05:55]} {[%emt 00:02:01]} Rd8 {[%clk 00:01:15]} {[%emt 00:00:51]}
20. Qb4+ {[%clk 00:04:31]} {[%emt 00:01:29]} Ke8 {[%clk 00:01:15]} {[%emt
00:00:05]} 21. c7 {[%clk 00:04:32]} {[%emt 00:00:04]} Rd7 {[%clk 00:01:00]}
{[%emt 00:00:20]} 22. Ne4 {[%clk 00:04:34]} {[%emt 00:00:02]} Qa6 {[%clk
00:00:20]} {[%emt 00:00:47]} 23. Qb8+ {[%clk 00:04:07]} {[%emt 00:00:31]} Qc8
{[%clk 00:00:22]} {[%emt 00:00:03]} 24. Qxa8 {[%clk 00:04:09]} {[%emt
00:00:03]} Qxa8 {[%clk 00:00:25]} {[%emt 00:00:03]} 25. c8=Q+ {[%clk 00:04:11]}
{[%emt 00:00:03]} 1-0

[Event "Elite Hotels Open 2024"]
[Site "Elite Stadshotellet, Kungsgatan 6, Vaxjo, Sweden"]
[Date "2024.02.09"]
[Round "2.2"]
[White "Soppela, Toni"]
[Black "Pantzar, Milton"]
[Result "0-1"]
[TimeControl "15 minutes + 5 seconds per move from move one (Round 1 - 4) / 90 minutes + 30 seconds per move from move one (Round 5 - 8)"]
[BlackTitle "IM"]
[WhiteFideId "1766163"]
[BlackFideId "1721003"]
[WhiteElo "2029"]
[BlackElo "2468"]

1. d4 {[%clk 00:15:06]} {[%emt 00:00:03]} d5 {[%clk 00:15:07]} {[%emt
00:00:04]} 2. c4 {[%clk 00:15:07]} {[%emt 00:00:04]} e6 {[%clk 00:15:10]}
{[%emt 00:00:02]} 3. Nc3 {[%clk 00:15:09]} {[%emt 00:00:03]} Nf6 {[%clk
00:15:12]} {[%emt 00:00:02]} 4. cxd5 {[%clk 00:15:11]} {[%emt 00:00:03]} exd5
{[%clk 00:15:15]} {[%emt 00:00:02]} 5. Bg5 {[%clk 00:15:14]} {[%emt 00:00:01]}
c6 {[%clk 00:15:19]} {[%emt 00:00:02]} 6. Qc2 {[%clk 00:15:16]} {[%emt
00:00:03]} Bd6 {[%clk 00:14:49]} {[%emt 00:00:35]} 7. e3 {[%clk 00:14:59]}
{[%emt 00:00:22]} O-O {[%clk 00:14:47]} {[%emt 00:00:06]} 8. Bd3 {[%clk
00:14:50]} {[%emt 00:00:14]} h6 {[%clk 00:14:48]} {[%emt 00:00:04]} 9. Bh4
{[%clk 00:14:06]} {[%emt 00:00:49]} Re8 {[%clk 00:14:50]} {[%emt 00:00:04]} 10.
Nge2 {[%clk 00:13:44]} {[%emt 00:00:26]} a5 {[%clk 00:14:41]} {[%emt 00:00:15]}
11. a3 {[%clk 00:13:32]} {[%emt 00:00:17]} Nbd7 {[%clk 00:13:49]} {[%emt
00:00:57]} 12. h3 {[%clk 00:13:21]} {[%emt 00:00:15]} Nf8 {[%clk 00:13:46]}
{[%emt 00:00:08]} 13. g4 {[%clk 00:12:57]} {[%emt 00:00:30]} Ne6 {[%clk
00:13:23]} {[%emt 00:00:28]} 14. Rg1 {[%clk 00:11:55]} {[%emt 00:01:06]} Ng5
{[%clk 00:12:42]} {[%emt 00:00:47]} 15. Bxg5 {[%clk 00:11:24]} {[%emt
00:00:36]} hxg5 {[%clk 00:12:44]} {[%emt 00:00:02]} 16. Ng3 {[%clk 00:10:30]}
{[%emt 00:00:59]} b5 {[%clk 00:11:15]} {[%emt 00:01:34]} 17. Nf5 {[%clk
00:09:22]} {[%emt 00:01:13]} Bf8 {[%clk 00:08:43]} {[%emt 00:02:38]} 18. h4
{[%clk 00:08:21]} {[%emt 00:01:05]} gxh4 {[%clk 00:06:08]} {[%emt 00:02:41]} 19.
g5 {[%clk 00:07:53]} {[%emt 00:00:33]} Ne4 {[%clk 00:06:11]} {[%emt 00:00:01]}
20. Nxe4 {[%clk 00:07:41]} {[%emt 00:00:17]} dxe4 {[%clk 00:06:10]} {[%emt
00:00:06]} 21. Bxe4 {[%clk 00:07:36]} {[%emt 00:00:11]} Bxf5 {[%clk 00:04:40]}
{[%emt 00:01:35]} 22. Bxf5 {[%clk 00:07:24]} {[%emt 00:00:16]} g6 {[%clk
00:02:14]} {[%emt 00:02:31]} 23. Bxg6 {[%clk 00:06:00]} {[%emt 00:01:29]} fxg6
{[%clk 00:02:17]} {[%emt 00:00:02]} 24. Qxg6+ {[%clk 00:06:01]} {[%emt
00:00:04]} Bg7 {[%clk 00:02:21]} {[%emt 00:00:02]} 25. Rg4 {[%clk 00:05:42]}
{[%emt 00:00:24]} Ra7 {[%clk 00:00:40]} {[%emt 00:01:47]} 26. Rxh4 {[%clk
00:05:19]} {[%emt 00:00:27]} Rf7 {[%clk 00:00:43]} {[%emt 00:00:02]} 27. O-O-O
{[%clk 00:04:57]} {[%emt 00:00:28]} Kf8 {[%clk 00:00:30]} {[%emt 00:00:18]} 28.
Rdh1 {[%clk 00:03:23]} {[%emt 00:01:39]} Qd5 {[%clk 00:00:32]} {[%emt
00:00:03]} 29. Qc2 {[%clk 00:00:58]} {[%emt 00:02:30]} c5 {[%clk 00:00:27]}
{[%emt 00:00:10]} 30. Qxc5+ {[%clk 00:00:27]} {[%emt 00:00:36]} Qxc5+ {[%clk
00:00:30]} {[%emt 00:00:02]} 31. dxc5 {[%clk 00:00:31]} Rxf2 {[%clk 00:00:30]}
{[%emt 00:00:04]} 32. Rf4+ {[%clk 00:00:35]} Rxf4 {[%clk 00:00:33]} {[%emt
00:00:03]} 33. exf4 {[%clk 00:00:40]} Re2 {[%clk 00:00:30]} {[%emt 00:00:08]}
34. f5 {[%clk 00:00:37]} {[%emt 00:00:08]} Bxb2+ {[%clk 00:00:22]} {[%emt
00:00:12]} 35. Kb1 {[%clk 00:00:25]} {[%emt 00:00:17]} Bxa3 {[%clk 00:00:10]}
{[%emt 00:00:17]} 36. c6 {[%clk 00:00:28]} {[%emt 00:00:02]} Rb2+ {[%clk
00:00:13]} {[%emt 00:00:02]} 37. Ka1 {[%clk 00:00:28]} {[%emt 00:00:06]} Rc2
{[%clk 00:00:15]} {[%emt 00:00:03]} 38. Rh6 {[%clk 00:00:06]} {[%emt 00:00:27]}
b4 {[%clk 00:00:10]} {[%emt 00:00:09]} 0-1

[Event "Elite Hotels Open 2024"]
[Site "Elite Stadshotellet, Kungsgatan 6, Vaxjo, Sweden"]
[Date "2024.02.09"]
[Round "2.3"]
[White "Seo, Jung Min"]
[Black "Ostensson, Julia"]
[Result "1-0"]
[TimeControl "15 minutes + 5 seconds per move from move one (Round 1 - 4) / 90 minutes + 30 seconds per move from move one (Round 5 - 8)"]
[WhiteTitle "IM"]
[WhiteFideId "1734687"]
[BlackFideId "1747703"]
[WhiteElo "2466"]
[BlackElo "1990"]

1. e4 {[%clk 00:15:09]} {[%emt 00:08:30]} c5 {[%clk 00:15:07]} {[%emt
00:00:04]} 2. Nf3 {[%clk 00:15:13]} d6 {[%clk 00:15:04]} {[%emt 00:00:08]} 3.
Bc4 {[%clk 00:15:03]} {[%emt 00:00:14]} e6 {[%clk 00:15:03]} {[%emt 00:00:07]}
4. O-O {[%clk 00:15:05]} {[%emt 00:00:03]} Be7 {[%clk 00:13:39]} {[%emt
00:01:30]} 5. Re1 {[%clk 00:15:07]} {[%emt 00:00:02]} Nf6 {[%clk 00:13:25]}
{[%emt 00:00:19]} 6. Bf1 {[%clk 00:14:29]} {[%emt 00:00:43]} O-O {[%clk
00:13:27]} {[%emt 00:00:03]} 7. c3 {[%clk 00:14:33]} e5 {[%clk 00:10:13]}
{[%emt 00:03:20]} 8. d4 {[%clk 00:13:54]} {[%emt 00:00:45]} Qc7 {[%clk
00:10:16]} {[%emt 00:00:02]} 9. d5 {[%clk 00:13:54]} {[%emt 00:00:05]} Nbd7
{[%clk 00:07:39]} {[%emt 00:02:42]} 10. c4 {[%clk 00:12:34]} {[%emt 00:01:24]}
Ne8 {[%clk 00:06:55]} {[%emt 00:00:50]} 11. Nc3 {[%clk 00:12:37]} {[%emt
00:00:01]} g6 {[%clk 00:05:52]} {[%emt 00:01:07]} 12. Qd2 {[%clk 00:11:32]}
{[%emt 00:01:11]} Ng7 {[%clk 00:03:01]} {[%emt 00:02:56]} 13. Qh6 {[%clk
00:11:32]} {[%emt 00:00:04]} f5 {[%clk 00:02:01]} {[%emt 00:01:07]} 14. Ng5
{[%clk 00:11:22]} {[%emt 00:00:14]} Bxg5 {[%clk 00:00:58]} {[%emt 00:01:08]} 15.
Bxg5 {[%clk 00:11:10]} {[%emt 00:00:17]} Nf6 {[%clk 00:01:01]} {[%emt
00:00:03]} 16. Qh4 {[%clk 00:10:39]} {[%emt 00:00:36]} Nge8 {[%clk 00:00:18]}
{[%emt 00:00:48]} 17. f4 {[%clk 00:10:36]} {[%emt 00:00:08]} fxe4 {[%clk
00:00:13]} {[%emt 00:00:10]} 18. fxe5 {[%clk 00:10:31]} {[%emt 00:00:09]} dxe5
{[%clk 00:00:09]} {[%emt 00:00:09]} 19. Nxe4 {[%clk 00:10:33]} {[%emt
00:00:04]} Ng4 {[%clk 00:00:09]} {[%emt 00:00:04]} 20. h3 {[%clk 00:10:25]}
{[%emt 00:00:12]} h6 {[%clk 00:00:08]} {[%emt 00:00:07]} 21. Bd2 {[%clk
00:10:02]} {[%emt 00:00:28]} g5 {[%clk 00:00:07]} {[%emt 00:00:06]} 22. Qg3
{[%clk 00:09:48]} {[%emt 00:00:19]} Ngf6 {[%clk 00:00:10]} {[%emt 00:00:02]} 23.
Nxf6+ {[%clk 00:09:50]} {[%emt 00:00:04]} Nxf6 {[%clk 00:00:12]} {[%emt
00:00:03]} 24. Rxe5 {[%clk 00:08:46]} {[%emt 00:01:08]} Kh8 {[%clk 00:00:17]}
25. Bc3 {[%clk 00:08:42]} {[%emt 00:00:09]} Bd7 {[%clk 00:00:12]} {[%emt
00:00:10]} 26. Rae1 {[%clk 00:08:38]} {[%emt 00:00:08]} Rf7 {[%clk 00:00:12]}
{[%emt 00:00:06]} 27. Bd3 {[%clk 00:08:18]} {[%emt 00:00:24]} Raf8 {[%clk
00:00:14]} {[%emt 00:00:03]} 28. Qe3 {[%clk 00:08:17]} {[%emt 00:00:07]} Nh5
{[%clk 00:00:09]} {[%emt 00:00:10]} 29. Rxg5+ {[%clk 00:08:12]} {[%emt
00:00:09]} Nf6 {[%clk 00:00:08]} {[%emt 00:00:06]} 30. Rg6 {[%clk 00:08:11]}
{[%emt 00:00:06]} 1-0

[Event "Elite Hotels Open 2024"]
[Site "Elite Stadshotellet, Kungsgatan 6, Vaxjo, Sweden"]
[Date "2024.02.09"]
[Round "2.4"]
[White "Sigeman, Johan"]
[Black "Hector, Jonny"]
[Result "0-1"]
[TimeControl "15 minutes + 5 seconds per move from move one (Round 1 - 4) / 90 minutes + 30 seconds per move from move one (Round 5 - 8)"]
[BlackTitle "GM"]
[WhiteFideId "1705601"]
[BlackFideId "1700090"]
[WhiteElo "2020"]
[BlackElo "2449"]

1. Nf3 {[%clk 00:15:07]} {[%emt 00:00:02]} d5 {[%clk 00:15:08]} {[%emt
00:00:02]} 2. d4 {[%clk 00:15:10]} {[%emt 00:00:02]} Nf6 {[%clk 00:15:10]}
{[%emt 00:00:02]} 3. g3 {[%clk 00:15:08]} {[%emt 00:00:08]} Bf5 {[%clk
00:15:04]} {[%emt 00:00:10]} 4. Bg2 {[%clk 00:15:09]} {[%emt 00:00:05]} h6
{[%clk 00:15:06]} {[%emt 00:00:03]} 5. O-O {[%clk 00:15:11]} {[%emt 00:00:04]}
e6 {[%clk 00:15:08]} {[%emt 00:00:03]} 6. c4 {[%clk 00:14:42]} {[%emt
00:00:34]} c6 {[%clk 00:15:04]} {[%emt 00:00:08]} 7. Qb3 {[%clk 00:13:55]}
{[%emt 00:00:53]} Qb6 {[%clk 00:14:56]} {[%emt 00:00:13]} 8. c5 {[%clk
00:13:42]} {[%emt 00:00:18]} Qa6 {[%clk 00:14:54]} {[%emt 00:00:06]} 9. Nc3
{[%clk 00:13:40]} {[%emt 00:00:07]} b6 {[%clk 00:14:51]} {[%emt 00:00:07]} 10.
cxb6 {[%clk 00:13:28]} {[%emt 00:00:18]} axb6 {[%clk 00:14:52]} {[%emt
00:00:03]} 11. Bf4 {[%clk 00:13:07]} {[%emt 00:00:26]} Be7 {[%clk 00:14:42]}
{[%emt 00:00:15]} 12. Rfe1 {[%clk 00:12:55]} {[%emt 00:00:18]} O-O {[%clk
00:14:40]} {[%emt 00:00:07]} 13. a3 {[%clk 00:12:00]} {[%emt 00:01:01]} c5
{[%clk 00:14:31]} {[%emt 00:00:13]} 14. e3 {[%clk 00:11:37]} {[%emt 00:00:29]}
c4 {[%clk 00:14:21]} {[%emt 00:00:14]} 15. Qd1 {[%clk 00:11:41]} {[%emt
00:00:02]} Nc6 {[%clk 00:14:12]} {[%emt 00:00:14]} 16. Ne5 {[%clk 00:11:39]}
{[%emt 00:00:06]} Na5 {[%clk 00:13:33]} {[%emt 00:00:44]} 17. g4 {[%clk
00:11:34]} {[%emt 00:00:12]} Bh7 {[%clk 00:13:28]} {[%emt 00:00:08]} 18. h4
{[%clk 00:11:21]} {[%emt 00:00:19]} Ne4 {[%clk 00:12:46]} {[%emt 00:00:46]} 19.
Nxe4 {[%clk 00:11:10]} {[%emt 00:00:17]} Bxe4 {[%clk 00:12:13]} {[%emt
00:00:38]} 20. Bxe4 {[%clk 00:10:59]} {[%emt 00:00:17]} dxe4 {[%clk 00:12:15]}
{[%emt 00:00:02]} 21. g5 {[%clk 00:10:51]} {[%emt 00:00:13]} g6 {[%clk
00:07:26]} {[%emt 00:04:54]} 22. h5 {[%clk 00:08:23]} {[%emt 00:02:34]} hxg5
{[%clk 00:06:29]} {[%emt 00:01:02]} 23. hxg6 {[%clk 00:08:19]} {[%emt
00:00:09]} fxg6 {[%clk 00:06:30]} {[%emt 00:00:03]} 24. Nxg6 {[%clk 00:07:32]}
{[%emt 00:00:52]} gxf4 {[%clk 00:06:20]} {[%emt 00:00:15]} 25. Qh5 {[%clk
00:07:13]} {[%emt 00:00:25]} Kg7 {[%clk 00:04:29]} {[%emt 00:01:54]} 26. Nxe7
{[%clk 00:06:03]} {[%emt 00:01:16]} Rf6 {[%clk 00:04:32]} {[%emt 00:00:02]} 27.
exf4 {[%clk 00:04:46]} {[%emt 00:01:22]} Rh8 {[%clk 00:04:17]} {[%emt
00:00:19]} 28. Qg5+ {[%clk 00:04:13]} {[%emt 00:00:39]} Kf7 {[%clk 00:04:21]}
29. Re3 {[%clk 00:03:27]} {[%emt 00:00:53]} Rfh6 {[%clk 00:03:02]} {[%emt
00:01:22]} 30. Rh3 {[%clk 00:00:59]} {[%emt 00:02:34]} Rxh3 {[%clk 00:03:01]}
{[%emt 00:00:06]} 31. Qg6+ {[%clk 00:00:57]} {[%emt 00:00:07]} Kxe7 {[%clk
00:03:01]} {[%emt 00:00:04]} 32. Qg7+ {[%clk 00:00:52]} {[%emt 00:00:11]} Kd8
{[%clk 00:03:04]} {[%emt 00:00:02]} 33. Qf6+ {[%clk 00:00:50]} {[%emt
00:00:07]} Kc7 {[%clk 00:03:07]} {[%emt 00:00:02]} 34. Qe7+ {[%clk 00:00:50]}
{[%emt 00:00:05]} Kb8 {[%clk 00:03:08]} {[%emt 00:00:04]} 0-1

[Event "Elite Hotels Open 2024"]
[Site "Elite Stadshotellet, Kungsgatan 6, Vaxjo, Sweden"]
[Date "2024.02.09"]
[Round "2.5"]
[White "Johansson, Linus"]
[Black "Willstedt, Lukas"]
[Result "1-0"]
[TimeControl "15 minutes + 5 seconds per move from move one (Round 1 - 4) / 90 minutes + 30 seconds per move from move one (Round 5 - 8)"]
[WhiteTitle "IM"]
[WhiteFideId "1711113"]
[BlackFideId "1751913"]
[WhiteElo "2434"]
[BlackElo "1982"]

1. d4 {[%clk 00:15:07]} {[%emt 00:00:03]} e6 {[%clk 00:15:09]} {[%emt
00:00:02]} 2. e4 {[%clk 00:14:52]} {[%emt 00:00:20]} d5 {[%clk 00:15:12]}
{[%emt 00:00:01]} 3. e5 {[%clk 00:14:56]} {[%emt 00:00:02]} c5 {[%clk
00:15:16]} {[%emt 00:00:01]} 4. c3 {[%clk 00:15:00]} Nc6 {[%clk 00:15:20]}
{[%emt 00:00:01]} 5. Nf3 {[%clk 00:15:03]} {[%emt 00:00:02]} Qb6 {[%clk
00:15:24]} 6. Be2 {[%clk 00:15:01]} {[%emt 00:00:07]} cxd4 {[%clk 00:15:20]}
{[%emt 00:00:10]} 7. cxd4 {[%clk 00:15:04]} {[%emt 00:00:02]} Nh6 {[%clk
00:15:21]} {[%emt 00:00:03]} 8. Bxh6 {[%clk 00:14:57]} {[%emt 00:00:12]} Qxb2
{[%clk 00:15:25]} {[%emt 00:00:02]} 9. Nbd2 {[%clk 00:14:56]} {[%emt 00:00:06]}
gxh6 {[%clk 00:15:22]} {[%emt 00:00:08]} 10. O-O {[%clk 00:14:13]} {[%emt
00:00:48]} Nxd4 {[%clk 00:13:18]} {[%emt 00:02:08]} 11. Rb1 {[%clk 00:09:18]}
{[%emt 00:05:01]} Nxe2+ {[%clk 00:12:39]} {[%emt 00:00:44]} 12. Qxe2 {[%clk
00:09:21]} {[%emt 00:00:01]} Qc2 {[%clk 00:11:06]} {[%emt 00:01:38]} 13. Nd4
{[%clk 00:07:23]} {[%emt 00:02:04]} Qa4 {[%clk 00:10:46]} {[%emt 00:00:24]} 14.
Nb5 {[%clk 00:07:24]} {[%emt 00:00:04]} Rb8 {[%clk 00:09:29]} {[%emt 00:01:22]}
15. Qf3 {[%clk 00:05:23]} {[%emt 00:02:06]} Be7 {[%clk 00:08:10]} {[%emt
00:01:25]} 16. Rfc1 {[%clk 00:05:27]} {[%emt 00:00:02]} Bd7 {[%clk 00:07:32]}
{[%emt 00:00:42]} 17. Nd6+ {[%clk 00:05:25]} {[%emt 00:00:07]} Bxd6 {[%clk
00:07:05]} {[%emt 00:00:32]} 18. Qf6 {[%clk 00:03:37]} {[%emt 00:01:54]} Bxe5
{[%clk 00:07:05]} {[%emt 00:00:06]} 19. Qxe5 {[%clk 00:03:41]} Ke7 {[%clk
00:07:09]} 20. Nf3 {[%clk 00:03:26]} {[%emt 00:00:19]} Qe4 {[%clk 00:06:26]}
{[%emt 00:00:47]} 21. Qc3 {[%clk 00:03:28]} {[%emt 00:00:04]} Rhc8 {[%clk
00:05:40]} {[%emt 00:00:50]} 22. Qa3+ {[%clk 00:03:32]} {[%emt 00:00:02]} Ke8
{[%clk 00:05:42]} {[%emt 00:00:02]} 23. Re1 {[%clk 00:03:36]} {[%emt 00:00:02]}
Qf5 {[%clk 00:04:47]} {[%emt 00:00:59]} 24. Qxa7 {[%clk 00:03:03]} {[%emt
00:00:39]} Bc6 {[%clk 00:04:41]} {[%emt 00:00:10]} 25. Qd4 {[%clk 00:03:04]}
{[%emt 00:00:04]} f6 {[%clk 00:04:23]} {[%emt 00:00:23]} 26. Qh4 {[%clk
00:02:58]} {[%emt 00:00:12]} e5 {[%clk 00:03:54]} {[%emt 00:00:34]} 27. Qxh6
{[%clk 00:02:43]} {[%emt 00:00:20]} Kf7 {[%clk 00:03:56]} {[%emt 00:00:02]} 28.
Nh4 {[%clk 00:02:00]} {[%emt 00:00:50]} Qc2 {[%clk 00:03:45]} {[%emt 00:00:14]}
29. Rbc1 {[%clk 00:01:58]} {[%emt 00:00:08]} Qd3 {[%clk 00:03:46]} {[%emt
00:00:02]} 30. Re3 {[%clk 00:01:53]} {[%emt 00:00:12]} Qd2 {[%clk 00:03:11]}
{[%emt 00:00:38]} 31. Qxh7+ {[%clk 00:01:57]} {[%emt 00:00:03]} Ke6 {[%clk
00:03:13]} 32. Qf5+ {[%clk 00:01:59]} {[%emt 00:00:06]} Kf7 {[%clk 00:03:11]}
{[%emt 00:00:06]} 33. Rce1 {[%clk 00:01:58]} {[%emt 00:00:07]} Bd7 {[%clk
00:02:51]} {[%emt 00:00:24]} 34. Qxd7+ {[%clk 00:01:59]} {[%emt 00:00:05]} 1-0

[Event "Elite Hotels Open 2024"]
[Site "Elite Stadshotellet, Kungsgatan 6, Vaxjo, Sweden"]
[Date "2024.02.09"]
[Round "2.6"]
[White "Lyngsjo, Hakan"]
[Black "Sorensen, Hampus"]
[Result "0-1"]
[TimeControl "15 minutes + 5 seconds per move from move one (Round 1 - 4) / 90 minutes + 30 seconds per move from move one (Round 5 - 8)"]
[BlackTitle "IM"]
[WhiteFideId "1701649"]
[BlackFideId "8703884"]
[WhiteElo "1980"]
[BlackElo "2430"]

1. e4 {[%clk 00:15:06]} {[%emt 00:00:03]} c5 {[%clk 00:15:09]} {[%emt
00:00:02]} 2. Nf3 {[%clk 00:15:06]} {[%emt 00:00:04]} d6 {[%clk 00:15:12]}
{[%emt 00:00:02]} 3. Bb5+ {[%clk 00:15:08]} {[%emt 00:00:03]} Bd7 {[%clk
00:15:16]} {[%emt 00:00:01]} 4. Bxd7+ {[%clk 00:15:09]} {[%emt 00:00:04]} Nxd7
{[%clk 00:15:19]} {[%emt 00:00:02]} 5. O-O {[%clk 00:15:03]} {[%emt 00:00:11]}
e6 {[%clk 00:15:10]} {[%emt 00:00:15]} 6. c4 {[%clk 00:14:48]} {[%emt
00:00:19]} Ne5 {[%clk 00:13:57]} {[%emt 00:01:18]} 7. d3 {[%clk 00:12:23]}
{[%emt 00:02:30]} Ne7 {[%clk 00:13:30]} {[%emt 00:00:33]} 8. b3 {[%clk
00:10:44]} {[%emt 00:01:43]} N7c6 {[%clk 00:13:00]} {[%emt 00:00:35]} 9. Bb2
{[%clk 00:10:45]} {[%emt 00:00:04]} Be7 {[%clk 00:12:57]} {[%emt 00:00:08]} 10.
Nxe5 {[%clk 00:10:09]} {[%emt 00:00:42]} dxe5 {[%clk 00:12:43]} {[%emt
00:00:18]} 11. f4 {[%clk 00:10:11]} {[%emt 00:00:02]} exf4 {[%clk 00:12:18]}
{[%emt 00:00:32]} 12. Rxf4 {[%clk 00:10:12]} {[%emt 00:00:03]} Bf6 {[%clk
00:11:25]} {[%emt 00:00:58]} 13. Bxf6 {[%clk 00:09:04]} {[%emt 00:01:13]} gxf6
{[%clk 00:11:29]} {[%emt 00:00:01]} 14. Qf1 {[%clk 00:09:08]} Qd4+ {[%clk
00:11:20]} {[%emt 00:00:13]} 0-1

[Event "Elite Hotels Open 2024"]
[Site "Elite Stadshotellet, Kungsgatan 6, Vaxjo, Sweden"]
[Date "2024.02.09"]
[Round "2.7"]
[White "Jepson, Christian"]
[Black "Seiger, Vidar"]
[Result "1-0"]
[TimeControl "15 minutes + 5 seconds per move from move one (Round 1 - 4) / 90 minutes + 30 seconds per move from move one (Round 5 - 8)"]
[WhiteTitle "IM"]
[WhiteFideId "1701185"]
[BlackFideId "1756079"]
[WhiteElo "2386"]
[BlackElo "1978"]

1. c4 {[%clk 00:15:08]} {[%emt 00:00:02]} g6 {[%clk 00:15:08]} {[%emt
00:00:02]} 2. e4 {[%clk 00:15:07]} {[%emt 00:00:06]} Bg7 {[%clk 00:15:02]}
{[%emt 00:00:11]} 3. d4 {[%clk 00:15:09]} {[%emt 00:00:03]} d6 {[%clk
00:15:03]} {[%emt 00:00:04]} 4. Nc3 {[%clk 00:15:06]} {[%emt 00:00:08]} Nf6
{[%clk 00:15:04]} {[%emt 00:00:03]} 5. f4 {[%clk 00:15:05]} {[%emt 00:00:07]}
O-O {[%clk 00:15:02]} {[%emt 00:00:07]} 6. Nf3 {[%clk 00:15:08]} {[%emt
00:00:02]} Na6 {[%clk 00:15:04]} {[%emt 00:00:02]} 7. Bd3 {[%clk 00:14:54]}
{[%emt 00:00:19]} e5 {[%clk 00:15:00]} {[%emt 00:00:10]} 8. fxe5 {[%clk
00:14:49]} {[%emt 00:00:11]} dxe5 {[%clk 00:15:03]} {[%emt 00:00:02]} 9. d5
{[%clk 00:14:51]} {[%emt 00:00:03]} Nc5 {[%clk 00:14:27]} {[%emt 00:00:41]} 10.
Bc2 {[%clk 00:14:38]} {[%emt 00:00:18]} a5 {[%clk 00:14:30]} {[%emt 00:00:02]}
11. O-O {[%clk 00:14:27]} {[%emt 00:00:16]} Ne8 {[%clk 00:13:48]} {[%emt
00:00:47]} 12. a3 {[%clk 00:13:18]} {[%emt 00:01:15]} Nd6 {[%clk 00:13:27]}
{[%emt 00:00:25]} 13. Qe2 {[%clk 00:13:07]} {[%emt 00:00:15]} b6 {[%clk
00:13:05]} {[%emt 00:00:28]} 14. b3 {[%clk 00:12:05]} {[%emt 00:01:07]} Bd7
{[%clk 00:10:49]} {[%emt 00:02:22]} 15. Rb1 {[%clk 00:11:52]} {[%emt 00:00:18]}
Qe7 {[%clk 00:09:07]} {[%emt 00:01:46]} 16. b4 {[%clk 00:11:52]} {[%emt
00:00:05]} axb4 {[%clk 00:09:10]} {[%emt 00:00:02]} 17. axb4 {[%clk 00:11:56]}
{[%emt 00:00:01]} Na4 {[%clk 00:09:08]} {[%emt 00:00:07]} 18. Bxa4 {[%clk
00:11:33]} {[%emt 00:00:28]} Bxa4 {[%clk 00:09:11]} {[%emt 00:00:02]} 19. Bg5
{[%clk 00:10:46]} {[%emt 00:00:51]} f6 {[%clk 00:08:57]} {[%emt 00:00:20]} 20.
Be3 {[%clk 00:10:49]} f5 {[%clk 00:08:26]} {[%emt 00:00:37]} 21. c5 {[%clk
00:09:30]} {[%emt 00:01:24]} Nxe4 {[%clk 00:08:01]} {[%emt 00:00:29]} 22. Nxe4
{[%clk 00:09:32]} {[%emt 00:00:03]} fxe4 {[%clk 00:08:05]} {[%emt 00:00:01]} 23.
Ng5 {[%clk 00:09:21]} {[%emt 00:00:16]} Rxf1+ {[%clk 00:04:35]} {[%emt
00:03:35]} 24. Rxf1 {[%clk 00:09:25]} {[%emt 00:00:02]} Rf8 {[%clk 00:04:38]}
{[%emt 00:00:02]} 25. d6 {[%clk 00:06:32]} {[%emt 00:02:58]} Rxf1+ {[%clk
00:02:53]} {[%emt 00:01:50]} 26. Qxf1 {[%clk 00:06:32]} {[%emt 00:00:05]} cxd6
{[%clk 00:02:47]} {[%emt 00:00:11]} 27. Qc4+ {[%clk 00:06:32]} {[%emt
00:00:05]} Kf8 {[%clk 00:02:51]} 28. cxd6 {[%clk 00:06:21]} {[%emt 00:00:16]}
1-0